[Event "MPL-4 Indian Chess Tour 2022"]
[Site "Chess24"]
[Date "2022.09.27"]
[Round "9.7"]
[White "Ganguly, Surya Shekhar"]
[Black "Narayanan.S.L"]
[Result "1/2-1/2"]
[ECO "A30"]
[WhiteElo "2589"]
[BlackElo "2657"]
[Annotator "TA"]
[PlyCount "79"]
[EventDate "2022.09.29"]
[EventType "tourn (rapid)"]
[EventCountry "NET"]
[SourceTitle "playchess.com"]
[Source "ChessBase"]
[SourceQuality "1"]
[WhiteTeam "India"]
[BlackTeam "India"]
[WhiteTeamCountry "IND"]
[BlackTeamCountry "IND"]
[TimeControl "900+10"]

{[%evp 12,79,19,9,8,1,20,13,28,23,26,18,18,24,11,0,0,0,12,0,10,0,0,12,16,0,0,0,0,0,0,0,0,0,0,0,0,0,0,0,0,0,0,0,0,0,0,0,0,0,0,0,0,0,0,0,0,0,0,0,0,0,0,0,0,0,0,0,0,0]} 1. e3 {[%emt 0:00:00]} b6 {[%emt 0:00:00]} 2. c4 {[%emt 0:00:10]} Bb7 {[%emt 0:00:03]} 3. Nf3 {[%emt 0:00:06]} Nf6 {[%emt 0:00:02]} 4. Nc3 {[%emt 0:00:05]} e6 {[%emt 0:00:17]} 5. b3 {[%emt 0:00:11]} c5 {[%emt 0:00:50]} 6. Bb2 {[%emt 0:00:08]} Be7 {[%emt 0:00:03]} 7. d4 {[%emt 0:01:44]} cxd4 {[%emt 0:00:07] A30: Symmetrical English: Double Fianchetto and Hedgehog.} 8. Nxd4 {[%emt 0:00:13]} Nc6 {[%emt 0:00:19]} 9. Be2 {[%emt 0:00:15]} a6 {[%emt 0:00:15]} 10. O-O {[%emt 0:00:02]} O-O {[%emt 0:00:04]} 11. Bf3 {[%emt 0:00:53]} Qc7 {[%emt 0:01:07]} 12. Rc1 {[%emt 0:00:03][%cal Oc3d5] [#]} Nxd4 $146 {[%emt 0:00:02]} ({Predecessor:} 12... Rfd8 13. Qe2 Rac8 14. Rfd1 Qb8 15. Na4 Nxd4 16. Bxd4 Bxf3 17. Qxf3 b5 18. Nb6 Rc7 19. cxb5 axb5 {1-0 (35) Bychkov,V (2303)-Mendonca,L (2530) Chess.com INT 2020}) 13. Bxb7 {[%emt 0:00:01] The position is equal.} Qxb7 {[%emt 0:00:06]} ({Resist} 13... Nxb3 14. Bxa8 Nxc1 15. Bf3 $16) 14. Qxd4 {[%emt 0:00:03]} Rfd8 {[%emt 0:00:19]} 15. a4 {[%emt 0:00:18]} Bf8 {[%emt 0:00:46]} 16. e4 {[%emt 0:01:00]} d5 {[%emt 0:01:55]} 17. cxd5 {[%emt 0:00:31]} exd5 {[%emt 0:00:01]} 18. exd5 {[%emt 0:00:30]} Nxd5 {[%emt 0:00:08]} 19. Qe4 {[%emt 0:00:04]} Qd7 {[%emt 0:01:50]} 20. Nxd5 {[%emt 0:02:59]} Qxd5 {[%emt 0:00:02]} 21. Qxd5 {[%emt 0:00:01]} Rxd5 {[%emt 0:00:01]} 22. Rfd1 {[%emt 0:00:02] Inhibits Rd3.} Rxd1+ {[%emt 0:00:03]} 23. Rxd1 $11 {[%emt 0:00:02][%mdl 4096] Endgame KRB-KRB} b5 {[%emt 0:00:04]} 24. g3 {[%emt 0:00:29]} bxa4 {[%emt 0:00:18]} 25. bxa4 {[%emt 0:00:00]} Rc8 {[%emt 0:00:03]} 26. Rd7 {[%emt 0:01:03]} f6 {[%emt 0:00:41]} 27. Bd4 {[%emt 0:01:11]} Bc5 {[%emt 0:01:38]} 28. Kg2 {[%emt 0:00:38]} Bxd4 {[%emt 0:00:06]} 29. Rxd4 {[%emt 0:00:01] KR-KR} Rc5 {[%emt 0:00:32]} 30. Kf3 {[%emt 0:00:11]} Kf7 {[%emt 0:00:02]} 31. Rb4 {[%emt 0:00:19]} Kg6 {[%emt 0:00:06]} 32. Ke4 {[%emt 0:00:25]} Rc2 {[%emt 0:00:03]} 33. Ke3 {[%emt 0:00:03]} Ra2 {[%emt 0:00:03]} 34. h4 {[%emt 0:00:07]} h5 {[%emt 0:00:03]} 35. Rf4 {[%emt 0:00:08]} Kf7 {[%emt 0:00:21]} 36. Re4 {[%emt 0:00:08]} Ra3+ {[%emt 0:00:14]} 37. Ke2 {[%emt 0:00:18]} Ra2+ {[%emt 0:00:01]} 38. Ke3 {[%emt 0:00:01]} Ra3+ {[%emt 0:00:01]} 39. Ke2 {[%emt 0:00:01]} Ra2+ {[%emt 0:00:00]} 40. Ke3 {[%emt 0:00:01] A balanced but interesting game.  Weighted Error Value: White=0.02 (flawless) /Black=0.02 (flawless)} 1/2-1/2

[Event "MPL-4 Indian Chess Tour 2022"]
[Site "Chess24"]
[Date "2022.09.27"]
[Round "9.8"]
[White "Mendonca, Leon Luke"]
[Black "Mohammad Nubairshah Shaikh"]
[Result "1-0"]
[ECO "D15"]
[WhiteElo "2558"]
[BlackElo "2461"]
[Annotator "TA"]
[PlyCount "95"]
[EventDate "2022.09.29"]
[EventType "tourn (rapid)"]
[EventCountry "NET"]
[SourceTitle "playchess.com"]
[Source "ChessBase"]
[SourceQuality "1"]
[WhiteTeam "India"]
[BlackTeam "India"]
[WhiteTeamCountry "IND"]
[BlackTeamCountry "IND"]
[TimeControl "900+10"]

{[%evp 11,95,27,22,23,33,40,49,-13,76,9,-3,-17,-21,-14,10,-35,-11,-26,27,7,0,0,37,-40,-35,-35,-20,-29,-22,-45,-23,-123,-128,-161,0,-4,172,159,189,62,593,-8,311,202,710,83,796,624,630,612,642,219,219,220,206,160,311,288,291,276,258,219,335,342,335,326,296,302,308,292,292,276,287,254,233,198,291,272,29994,29995,29996,29997,29997,29998,29998,29999]} 1. c4 {[%emt 0:00:00]} c6 {[%emt 0:00:00]} 2. Nf3 {[%emt 0:00:03]} d5 {[%emt 0:00:01]} 3. e3 {[%emt 0:00:01]} Nf6 {[%emt 0:00:03]} 4. Nc3 {[%emt 0:00:01]} a6 {[%emt 0:00:11]} 5. d4 {[%emt 0:00:02]} b5 {[%emt 0:00:43]} 6. b3 {[%emt 0:00:38]} Bg4 {[%emt 0:00:17]} 7. a4 {[%emt 0:00:31][%cal Ra4b5] D15: Slav Defence: 4 Nc3 a6 and gambit lines after 4 Nc3 dxc4.} b4 {[%emt 0:01:45] 7...bxc4 is more advanced technology.} 8. Ne2 {[%emt 0:00:08]} Nbd7 {[%emt 0:01:10] [#]} 9. a5 $146 {[%emt 0:02:06]} ({White should play} 9. Ne5 $14) ({Predecessor:} 9. Ne5 Nxe5 10. dxe5 Nd7 11. f3 Bh5 12. Nf4 Bg6 13. e6 Nc5 14. cxd5 cxd5 15. Bb2 Nxe6 16. Nxe6 fxe6 {½-½ (70) Kryakvin,D (2586)-Volkov,S (2567) Grozny 2019}) 9... c5 {[%emt 0:00:53]} (9... dxc4 $11 10. bxc4 e5) 10. Ng3 {[%emt 0:02:10]} (10. Ne5 $16) 10... h5 $11 {[%emt 0:07:48]} 11. h3 {[%emt 0:00:39]} Bxf3 {[%emt 0:00:02]} 12. gxf3 {[%emt 0:00:52]} cxd4 {[%emt 0:00:56]} (12... h4 $5 13. Ne2 $8 dxc4 $11) 13. exd4 {[%emt 0:00:27]} (13. cxd5 $5 {[%cal Rd1d4]} dxe3 14. Bxe3 $11 (14. fxe3 Qc7 $11)) 13... e6 {[%emt 0:00:57][%cal Be7e6,Be6f5][%mdl 32]} 14. Bd3 {[%emt 0:01:11]} Bd6 {[%emt 0:00:02]} (14... Nb8 $142) 15. f4 {[%emt 0:00:09]} h4 {[%emt 0:01:16]} 16. Ne2 {[%emt 0:00:16]} Bc7 {[%emt 0:00:02]} 17. f5 {[%emt 0:02:01]} ({White should try} 17. Rg1 $14) 17... dxc4 $15 {[%emt 0:01:21]} 18. Bxc4 {[%emt 0:04:05] Threatens to win with Rg1.} exf5 {[%emt 0:00:02]} 19. Rg1 {[%emt 0:00:07]} Kf8 {[%emt 0:00:32]} 20. Qd3 {[%emt 0:01:01]} g6 {[%emt 0:00:03]} 21. Bxa6 {[%emt 0:00:36]} (21. Bg5 $11 {keeps the balance.}) 21... Bxa5 $17 {[%emt 0:00:13]} 22. Bc4 {[%emt 0:00:32][%cal Oc4f7]} Kg7 $2 {[%emt 0:00:15]} (22... Bc7 $19 23. Ra4 Nb6 24. Rxb4 Ra1) 23. Qxf5 {[%emt 0:00:07] Strongly threatening Nf4.} Rh5 $2 {[%emt 0:00:04] [#]} (23... Bb6 $11 {and Black has nothing to worry.} 24. Rxa8 Qxa8) 24. Qf3 $1 $18 {[%emt 0:00:07] Hoping for Kf1.} Nb6 {[%emt 0:00:12]} 25. Kf1 {[%emt 0:00:41]} (25. Nf4 $18 Rf5 {[#]} 26. Rxg6+ $1 fxg6 27. Ne6+ Kh8 28. Qxf5 gxf5 29. Nxd8) 25... Qe7 $2 {[%emt 0:00:21][%mdl 8192]} (25... Nxc4 $14 26. bxc4 Qe8) 26. d5 $2 {[%emt 0:00:33]} (26. Nf4 $18) 26... Nbxd5 $2 {[%emt 0:00:06][%mdl 8192]} (26... Qe5 $11 {and Black stays safe.} 27. Ra2 Nxc4 28. bxc4 Rf5) 27. Bb2 {[%emt 0:00:03] A strong pair of Bishops.} Re5 {[%emt 0:00:12]} (27... Kh7) 28. Nd4 $2 {[%emt 0:00:26]} (28. Bxd5 $18 {and the rest is easy.} Ra7 29. Bc4) 28... Re8 {[%emt 0:00:06][%mdl 8192]} 29. Nf5+ {[%emt 0:00:10]} Rxf5 {[%emt 0:00:01]} 30. Qxf5 {[%emt 0:00:00]} Nc3 {[%emt 0:00:08]} 31. Bxc3 $2 {[%emt 0:00:12]} ({Worse is} 31. Rxa5 Qe1+ 32. Kg2 gxf5 $11) (31. Qxa5 Qd6 32. Bxc3 bxc3 33. Qxc3) 31... bxc3 {[%emt 0:00:03]} 32. Qxa5 {[%emt 0:00:03] Chess con chili.} Ne4 {[%emt 0:00:08]} 33. Qd5 {[%emt 0:00:17]} Qf6 {[%emt 0:00:05] [#] Against Qd4} (33... Rd8 $16 {was called for.} 34. Qxf7+ (34. Qc6 c2 $15) 34... Qxf7 35. Bxf7 Kxf7) 34. Qxf7+ $1 {[%emt 0:00:12]} Qxf7 {[%emt 0:00:00]} 35. Bxf7 {[%emt 0:00:00]} Kxf7 {[%emt 0:00:00][%mdl 4096] Endgame KRR-KRN} 36. Kg2 {[%emt 0:00:08] Rge1 is the strong threat.} Rb8 {[%emt 0:00:43]} (36... Rc8 $142 37. Ra4 Nd2) 37. Rge1 {[%emt 0:00:10]} Nd2 {[%emt 0:00:20]} 38. Ra7+ {[%emt 0:00:11]} Kf6 {[%emt 0:00:01]} 39. Rc7 {[%emt 0:00:08] Prevents Rc8.} Rxb3 {[%emt 0:00:02]} 40. Re3 {[%emt 0:00:06]} Nb1 {[%emt 0:00:05]} 41. Rc6+ {[%emt 0:00:13]} Kf5 {[%emt 0:00:04]} 42. Rc5+ {[%emt 0:00:29]} Kf6 {[%emt 0:00:02]} 43. Re4 {[%emt 0:00:10]} g5 {[%emt 0:00:16]} (43... Na3 $142 44. Rxh4 c2) 44. Ra4 {[%emt 0:00:15] Threatening mate with Ra6+.} Na3 $2 {[%emt 0:00:40]} (44... Rb6 $18 45. Rd4 Ke6) 45. Ra6+ {[%emt 0:00:06] White mates.} Ke7 {[%emt 0:00:02]} 46. Rc7+ {[%emt 0:00:10]} Kd8 {[%emt 0:00:00]} 47. Rg7 {[%emt 0:00:05]} Rb8 {[%emt 0:00:42]} 48. Rh6 {[%emt 0:00:17] Weighted Error Value: White=0.81/Black=0.67} 1-0

[Event "MPL-4 Indian Chess Tour 2022"]
[Site "Chess24"]
[Date "2022.09.27"]
[Round "10.1"]
[White "Raja Harshit"]
[Black "Mohammad Nubairshah Shaikh"]
[Result "0-1"]
[ECO "B11"]
[WhiteElo "2459"]
[BlackElo "2461"]
[Annotator "TA"]
[PlyCount "110"]
[EventDate "2022.09.29"]
[EventType "tourn (rapid)"]
[EventCountry "NET"]
[SourceTitle "playchess.com"]
[Source "ChessBase"]
[SourceQuality "1"]
[WhiteTeam "India"]
[BlackTeam "India"]
[WhiteTeamCountry "IND"]
[BlackTeamCountry "IND"]
[TimeControl "900+10"]

{[%evp 10,110,22,25,25,22,27,22,20,21,25,26,26,25,23,18,24,0,10,-16,12,0,20,-3,56,55,43,47,31,36,65,61,70,0,0,0,0,0,0,0,96,76,78,66,218,218,207,211,250,250,239,222,321,287,306,306,461,454,454,454,441,155,173,127,135,128,128,122,117,99,92,0,110,98,103,95,97,25,25,25,25,25,785,760,975,572,440,65,60,8,145,0,0,0,0,0,0,0,0,0,0,-29982,-29983]} 1. e4 {[%emt 0:00:00]} c6 {[%emt 0:00:00]} 2. Nf3 {[%emt 0:00:13]} d5 {[%emt 0:00:03]} 3. Nc3 {[%emt 0:00:03]} dxe4 {[%emt 0:00:05]} 4. Nxe4 {[%emt 0:00:01]} Nf6 {[%emt 0:00:01]} 5. Qe2 {[%emt 0:00:01]} Nxe4 {[%emt 0:00:01]} 6. Qxe4 {[%emt 0:00:00]} Nd7 {[%emt 0:00:01] B11: Caro-Kann: Two Knights Variation.} 7. d4 {[%emt 0:00:08]} Nf6 {[%emt 0:00:05]} 8. Qf4 {[%emt 0:00:01]} Qa5+ {[%emt 0:00:33] The position is equal.} 9. Bd2 {[%emt 0:00:25]} Qf5 {[%emt 0:00:03]} 10. Bd3 {[%emt 0:00:49]} Qxf4 {[%emt 0:00:03]} 11. Bxf4 {[%emt 0:00:00]} Bg4 {[%emt 0:00:58]} 12. Ne5 {[%emt 0:00:14] [#]} Bh5 $146 {[%emt 0:00:01]} ({Predecessor:} 12... e6 13. Nxg4 Nxg4 14. c3 Nf6 15. a4 O-O-O 16. O-O-O Bd6 17. Bd2 e5 18. dxe5 Bxe5 {1-0 (30) Oparin,G (2683)-Lenderman,A (2535) Chess.com INT 2022}) 13. a4 {[%emt 0:00:40]} e6 {[%emt 0:00:17]} (13... Nd5 $5 {[%cal Rd5f4]} 14. Be3 e6 $11) 14. a5 {[%emt 0:00:09]} a6 {[%emt 0:01:06]} (14... Nd5 $5 {[%cal Rd5f4]} 15. Be3 Bb4+ 16. Bd2 f6 $11) 15. O-O {[%emt 0:00:21]} Rd8 {[%emt 0:00:39]} 16. Ra4 {[%emt 0:00:19]} c5 {[%emt 0:03:37]} (16... Nd5 $11 17. Bd2 Bd6) 17. dxc5 $14 {[%emt 0:00:04]} Bxc5 {[%emt 0:00:03]} 18. b4 {[%emt 0:01:13]} Bd6 {[%emt 0:03:43]} 19. b5 {[%emt 0:00:03]} Nd5 {[%emt 0:00:17]} 20. Bg3 {[%emt 0:00:10]} Nc3 {[%emt 0:01:07] [#]} 21. Rd4 {[%emt 0:01:00]} (21. bxa6 $1 $14 bxa6 22. Rd4) 21... f6 {[%emt 0:02:20] Strongly threatening ...Ne2+.} 22. bxa6 {[%emt 0:01:59]} Bxe5 {[%emt 0:00:22]} (22... fxe5 $2 23. Rxd6 $1 {[%mdl 512]} Rxd6 24. axb7 $18) 23. Bxe5 {[%emt 0:00:04]} fxe5 {[%emt 0:00:04]} 24. Rc4 {[%emt 0:00:07][%cal Bd4c4,Bc4c3,Bc3c8][%mdl 32]} (24. Rxd8+ Kxd8 25. axb7 Kc7 $17) 24... e4 {[%emt 0:01:32]} (24... Ne2+ $11 {keeps the balance.} 25. Kh1 bxa6) 25. Rxc3 {[%emt 0:01:43]} exd3 {[%emt 0:00:02]} 26. axb7 {[%emt 0:00:05]} Be2 {[%emt 0:02:09]} ({Black should try} 26... d2 $1 $14 27. Rc8 O-O 28. Rxd8 Rxd8) 27. cxd3 $18 {[%emt 0:03:12]} (27. Rc8 O-O 28. Rxd8 (28. b8=Q $2 Rxc8 29. Qe5 Bxf1 $19) 28... Rxd8 29. cxd3 Bxd3) 27... Bxf1 {[%emt 0:00:02]} 28. Rc8 $1 {[%emt 0:00:38]} (28. Kxf1 $6 Kd7 $16) 28... Kd7 {[%emt 0:00:23]} 29. b8=Q {[%emt 0:00:06] Qc7+ would kill now.} Rxc8 {[%emt 0:00:03]} 30. Qb5+ {[%emt 0:00:05]} Kd6 {[%emt 0:00:02]} (30... Ke7 {keeps fighting.}) 31. Kxf1 {[%emt 0:00:07][%mdl 4096] Endgame KQ-KRR} Rc1+ {[%emt 0:00:03]} 32. Ke2 {[%emt 0:00:02]} Rhc8 {[%emt 0:00:00]} (32... Rc7 $142 33. d4 Rd8 34. Qe5+ Kd7 35. Qxg7+ Kc8) 33. Qb6+ {[%emt 0:00:25]} Ke7 {[%emt 0:00:11]} 34. a6 {[%emt 0:00:08]} R8c2+ {[%emt 0:00:08]} 35. Ke3 $2 {[%emt 0:00:23]} (35. Kf3 $18 {and the rest is easy.} Ra1 36. Qd4 (36. a7 Rca2 $16) 36... Rxa6 37. Qxg7+ Kd6 38. Qxh7) 35... Ra2 $16 {[%emt 0:00:15]} 36. Qb4+ {[%emt 0:00:31]} (36. g4 $18) 36... Kf7 {[%emt 0:00:25]} 37. Qf4+ {[%emt 0:00:03]} Kg8 {[%emt 0:00:22]} 38. Qd6 {[%emt 0:00:14]} Kf7 {[%emt 0:00:10]} 39. Qd7+ {[%emt 0:00:04]} Kf8 {[%emt 0:00:04]} 40. Qd6+ {[%emt 0:00:40]} Kf7 {[%emt 0:00:00]} 41. Kf3 {[%emt 0:00:07] aiming for Qf4+.} Rca1 {[%emt 0:00:04]} 42. Qd7+ {[%emt 0:00:05]} Kf6 {[%emt 0:00:03]} 43. g4 {[%emt 0:00:13]} (43. Qd4+ $16 Kf7 44. Qd7+ Kf6 45. Qd8+ (45. Qd4+ Kf7 $16) 45... Kf7 46. Qc7+ (46. Qd7+ Kf6 $16) 46... Kg6 47. Qg3+ Kf7 48. Qf4+ Kg8 49. Qb8+ Kf7 50. Qc7+ Kg6 51. Qe5 Rxa6 52. Qe4+ Kf7 53. Qxh7) 43... h6 $1 $11 {[%emt 0:00:19]} 44. h4 {[%emt 0:00:22][%cal Bh2h4,Bh4h5][%mdl 32]} Rxa6 {[%emt 0:00:03]} 45. h5 {[%emt 0:00:06] Black must now prevent Qe8.} R1a5 $2 {[%emt 0:00:32][%mdl 8192] [#]} (45... Ra8 $11) 46. Qe8 $1 $18 {[%emt 0:00:09]} Ra7 {[%emt 0:00:01]} 47. d4 {[%emt 0:00:17] Hoping for Qf8+.} Ra3+ {[%emt 0:00:24]} 48. Ke4 $2 {[%emt 0:00:10]} (48. Kg2 $18) 48... Kg5 $14 {[%emt 0:00:08]} 49. Qxe6 {[%emt 0:00:28]} ({Better is} 49. f3 $14 Kh4 50. Qxe6) 49... Kh4 {[%emt 0:00:09] [#]} (49... R3a6 $1 $11 50. Qf5+ Kh4) 50. f4 {[%emt 0:01:39]} ({White should play} 50. Qd6 $1 $16) 50... R3a6 $11 {[%emt 0:00:08]} 51. Qc8 {[%emt 0:00:58]} Re7+ {[%emt 0:00:14]} 52. Kd5 {[%emt 0:00:03]} Rf6 {[%emt 0:00:08]} 53. Kc5 {[%emt 0:01:00]} Rxf4 {[%emt 0:00:09]} 54. Qd8 {[%emt 0:00:03]} Rfe4 {[%emt 0:00:11]} 55. Kd6 $2 {[%emt 0:00:45][%mdl 8192]} (55. Qf8 $11) 55... Rxd4+ {[%emt 0:00:05] A wild game.  Weighted Error Value: White=0.56/Black=0.21 (precise)} 0-1

[Event "MPL-4 Indian Chess Tour 2022"]
[Site "Chess24"]
[Date "2022.09.27"]
[Round "10.2"]
[White "Narayanan.S.L"]
[Black "Mendonca, Leon Luke"]
[Result "1/2-1/2"]
[ECO "D14"]
[WhiteElo "2657"]
[BlackElo "2558"]
[Annotator "TA"]
[PlyCount "137"]
[EventDate "2022.09.29"]
[EventType "tourn (rapid)"]
[EventCountry "NET"]
[SourceTitle "playchess.com"]
[Source "ChessBase"]
[SourceQuality "1"]
[WhiteTeam "India"]
[BlackTeam "India"]
[WhiteTeamCountry "IND"]
[BlackTeamCountry "IND"]
[TimeControl "900+10"]

{[%evp 16,137,23,14,15,15,16,12,17,11,6,0,16,0,0,0,0,0,0,13,14,15,2,0,0,0,0,0,0,0,0,0,0,0,0,0,0,-13,0,0,0,0,0,0,0,0,0,0,0,0,0,0,0,0,0,0,0,0,0,0,0,0,0,0,0,0,0,0,0,0,0,0,0,0,0,0,0,0,0,0,0,0,0,0,0,0,0,0,0,0,0,-40,0,0,0,0,0,0,0,0,0,0,0,0,0,0,0,0,0,-51,0,0,0,0,0,0,0,0,0,0,0,0,0,0]} 1. c3 {[%emt 0:00:00]} c5 {[%emt 0:00:00]} 2. Nf3 {[%emt 0:00:03]} Nf6 {[%emt 0:00:04]} 3. d4 {[%emt 0:00:07]} cxd4 {[%emt 0:00:06]} 4. cxd4 {[%emt 0:00:01]} d5 {[%emt 0:00:01]} 5. Nc3 {[%emt 0:00:00]} Nc6 {[%emt 0:00:01]} 6. Bf4 {[%emt 0:00:01]} Bf5 {[%emt 0:00:05]} 7. Qb3 {[%emt 0:00:02]} Na5 {[%emt 0:01:06]} 8. Qa4+ {[%emt 0:00:04]} Bd7 {[%emt 0:00:02]} 9. Qc2 {[%emt 0:00:02]} e6 {[%emt 0:00:10] D14: Slav Defence: Exchange variation with ...Bf5.} 10. e3 {[%emt 0:00:00]} Rc8 {[%emt 0:00:11][%cal Of6e4]} 11. Bd3 {[%emt 0:00:01] Prevents Ne4.} Bb4 $1 {[%emt 0:00:59][%cal Of6e4][%mdl 4] is more profitable than 11...Be7 at the moment.} 12. O-O {[%emt 0:00:02]} Nh5 {[%emt 0:00:29]} 13. Be5 {[%emt 0:00:14]} Nc4 {[%emt 0:02:12] [#]} 14. Rfc1 $146 {[%emt 0:00:10]} ({But not} 14. Bxh7 $2 {[#]} Nxb2 $1 {[%mdl 512]} 15. Rac1 Bxc3 $19) ({Predecessor:} 14. Rac1 Qa5 15. Qe2 Nxe5 16. Nxe5 Nf6 17. g4 Bxc3 18. bxc3 Ke7 19. Qf3 h6 20. c4 dxc4 21. Rxc4 {0-1 (38) Lopez Azambuja,N (2296)-Salinas Herrera,P (2441) Villa Martelli 2017}) 14... Bxc3 {[%emt 0:01:41]} 15. bxc3 {[%emt 0:00:02]} f6 {[%emt 0:00:07]} 16. Bg3 {[%emt 0:00:29]} ({Don't play} 16. Bxh7 fxe5 17. Qg6+ Kf8 18. Qxh5 Be8 $17) 16... Nxg3 {[%emt 0:00:48]} 17. hxg3 {[%emt 0:00:02]} g6 {[%emt 0:00:10]} 18. a4 {[%emt 0:02:36]} Kf7 {[%emt 0:00:15]} 19. Nd2 {[%emt 0:00:05]} Nxd2 {[%emt 0:01:28]} 20. Qxd2 {[%emt 0:00:02]} Qa5 {[%emt 0:00:02]} 21. Bb5 {[%emt 0:01:05]} Rc7 {[%emt 0:00:41]} 22. Qb2 {[%emt 0:00:44]} Rhc8 {[%emt 0:01:06]} 23. Bxd7 {[%emt 0:00:02]} Rxd7 {[%emt 0:00:00]} 24. Qb5 {[%emt 0:00:01]} Qc7 {[%emt 0:01:16]} 25. a5 {[%emt 0:00:02]} Qc6 {[%emt 0:01:26]} 26. Qb2 {[%emt 0:00:06]} Qa6 {[%emt 0:00:16]} 27. Ra3 {[%emt 0:00:04][%cal Ba1a3,Ba3b3,Bb3b5][%mdl 32]} Rc6 {[%emt 0:00:31]} 28. Rca1 {[%emt 0:00:13]} Qd3 {[%emt 0:01:21]} 29. Rc1 {[%emt 0:01:37][%cal Oc3c4]} Qa6 {[%emt 0:00:11]} 30. Rb3 {[%emt 0:01:05]} f5 {[%emt 0:01:48]} 31. Rb1 {[%emt 0:00:29][%cal Rb3b7]} Rcc7 {[%emt 0:00:07]} 32. Rb5 {[%emt 0:00:03]} Qc6 {[%emt 0:00:07]} 33. Rc1 {[%emt 0:00:32]} Qc4 {[%emt 0:00:04]} 34. Rb4 {[%emt 0:00:08]} Qd3 {[%emt 0:00:24]} 35. Rb3 {[%emt 0:00:14][%cal Oc3c4]} Qc4 {[%emt 0:00:05]} 36. Rb1 {[%emt 0:00:11]} Qa6 {[%emt 0:00:23]} 37. Kh2 {[%emt 0:01:14]} Qd3 {[%emt 0:00:18]} (37... Qxa5 $2 38. Ra1 Qxa1 39. Qxa1 $18) 38. Rc1 {[%emt 0:01:51][%cal Oc3c4] [#] Black must now prevent c4!} Qa6 {[%emt 0:00:24]} 39. Rb5 {[%emt 0:00:26]} Rc4 {[%emt 0:00:52]} 40. Kh3 {[%emt 0:00:14]} Rdc7 {[%emt 0:00:16]} 41. Rb1 {[%emt 0:00:13]} Rxc3 {[%emt 0:00:09]} 42. Rxb7 {[%emt 0:01:38]} Qxa5 {[%emt 0:00:02]} 43. Ra1 {[%emt 0:01:01]} Rxb7 {[%emt 0:00:10]} 44. Qxb7+ $11 {[%emt 0:00:01][%mdl 4096] Endgame KQR-KQR} Rc7 {[%emt 0:00:04]} 45. Qb8 {[%emt 0:00:33]} Qxa1 {[%emt 0:00:16][%cal Ra1h1]} 46. Qxc7+ {[%emt 0:00:02] KQ-KQ} Kf6 {[%emt 0:00:06][%cal Ra1h1]} 47. Qd8+ {[%emt 0:00:05]} Kf7 {[%emt 0:00:01][%cal Ra1h1]} 48. Qc7+ {[%emt 0:00:11]} Kf6 {[%emt 0:00:01][%cal Ra1h1]} 49. g4 {[%emt 0:00:05]} fxg4+ {[%emt 0:00:31]} 50. Kxg4 {[%emt 0:00:03]} h5+ {[%emt 0:00:15]} 51. Kg3 {[%emt 0:00:01]} Qd1 {[%emt 0:00:17]} 52. Qd8+ {[%emt 0:00:11]} Kf7 {[%emt 0:00:03]} 53. f3 {[%emt 0:00:11] Active counter play!} Qd3 {[%emt 0:00:10]} 54. Qc7+ {[%emt 0:00:06]} Kf6 {[%emt 0:00:03]} 55. Qd8+ {[%emt 0:00:11]} Kf7 {[%emt 0:00:03]} 56. Qc7+ {[%emt 0:00:53]} Kf6 {[%emt 0:00:01]} 57. Qe5+ {[%emt 0:00:07]} Kf7 {[%emt 0:00:07]} 58. Qf4+ {[%emt 0:00:02]} Kg7 {[%emt 0:00:16]} 59. Qe5+ {[%emt 0:00:19]} Kf7 {[%emt 0:00:02]} 60. e4 {[%emt 0:00:07]} dxe4 {[%emt 0:00:19]} 61. Qc7+ {[%emt 0:00:04]} Kf6 {[%emt 0:00:07]} 62. Qb8 {[%emt 0:00:30]} (62. Qf4+ $11 Ke7 63. Qc7+ Kf8 64. Qd8+ Kg7 65. Qc7+ Kg8 66. Qb8+ Kh7 67. Qc7+ Kh8 68. Qe5+ Kh7 69. Qc7+ Kh8 70. Qe5+ Kh7 71. Qc7+) 62... g5 {[%emt 0:00:27]} (62... Qa3 $1 $15 63. Qf4+ Ke7 64. Qc7+ Ke8) 63. Qf8+ {[%emt 0:01:12] The position is equal.} Kg6 {[%emt 0:00:02]} 64. Qg8+ {[%emt 0:00:18]} Kf6 {[%emt 0:00:07]} 65. Qd8+ {[%emt 0:00:11]} Kg6 {[%emt 0:00:08]} 66. Qe8+ {[%emt 0:00:01]} Kf6 {[%emt 0:00:05]} 67. Qf8+ {[%emt 0:00:18]} Kg6 {[%emt 0:00:02]} 68. Qg8+ {[%emt 0:00:02]} Kf6 {[%emt 0:00:01]} 69. Qf8+ {[%emt 0:00:00] An even fight not without its subleties.  Weighted Error Value: White=0.02 (flawless) /Black=0.02 (flawless)} 1/2-1/2